[Event "*** Titled Tuesday Blitz"]
[Site "Chess.com"]
[Date "2021.03.30"]
[Round "1"]
[White "Rud_Makarian"]
[Black "NoboaKevin1999"]
[Result "1-0"]
[WhiteElo "2798"]
[BlackElo "2423"]
[TimeControl "180+1"]
[EndTime "10:07:59 PDT"]
[Termination "Rud_Makarian won on time"]

1. b3 {[%clk 0:02:58.6]} 1... e5 {[%clk 0:02:58.1]} 2. Bb2 {[%clk 0:02:59.5]}
2... Nc6 {[%clk 0:02:58.7]} 3. e3 {[%clk 0:02:59.3]} 3... Nf6 {[%clk 0:02:58.8]}
4. Bb5 {[%clk 0:02:57.8]} 4... Bd6 {[%clk 0:02:58.3]} 5. Na3 {[%clk 0:02:54.4]}
5... Na5 {[%clk 0:02:57.6]} 6. Be2 {[%clk 0:02:50.3]} 6... a6 {[%clk 0:02:50.5]}
7. c4 {[%clk 0:02:47.8]} 7... Qe7 {[%clk 0:02:48.4]} 8. Nc2 {[%clk 0:02:47.8]}
8... Nc6 {[%clk 0:02:43.7]} 9. Nf3 {[%clk 0:02:42.2]} 9... O-O {[%clk 0:02:43]}
10. d4 {[%clk 0:02:38.7]} 10... exd4 {[%clk 0:02:41.1]} 11. Nfxd4 {[%clk
0:02:37.9]} 11... Nxd4 {[%clk 0:02:33.3]} 12. Qxd4 {[%clk 0:02:38.8]} 12... Re8
{[%clk 0:02:29]} 13. O-O-O {[%clk 0:02:37.4]} 13... Be5 {[%clk 0:02:27.6]} 14.
Qxe5 {[%clk 0:02:37.9]} 14... Qxe5 {[%clk 0:02:28.5]} 15. Bxe5 {[%clk
0:02:38.3]} 15... Rxe5 {[%clk 0:02:29.4]} 16. Bf3 {[%clk 0:02:38.4]} 16... d6
{[%clk 0:02:26.2]} 17. Rd4 {[%clk 0:02:38.2]} 17... a5 {[%clk 0:02:25.1]} 18.
Kb2 {[%clk 0:02:37.9]} 18... a4 {[%clk 0:02:21.6]} 19. b4 {[%clk 0:02:29.1]}
19... h6 {[%clk 0:02:19.1]} 20. Na3 {[%clk 0:02:28.3]} 20... Bf5 {[%clk
0:02:14.3]} 21. Nb5 {[%clk 0:02:20.3]} 21... c5 {[%clk 0:02:02.1]} 22. bxc5
{[%clk 0:02:14.2]} 22... dxc5 {[%clk 0:02:01.3]} 23. Rd6 {[%clk 0:02:09]} 23...
Be4 {[%clk 0:01:58]} 24. Nc3 {[%clk 0:01:52.1]} 24... Bxf3 {[%clk 0:01:50.7]}
25. gxf3 {[%clk 0:01:53]} 25... Rg5 {[%clk 0:01:38.5]} 26. Rb6 {[%clk
0:01:44.9]} 26... Rg2 {[%clk 0:01:37.4]} 27. Rf1 {[%clk 0:01:45.4]} 27... Rd8
{[%clk 0:01:30.3]} 28. Kc2 {[%clk 0:01:42]} 28... Rxh2 {[%clk 0:01:23.9]} 29.
Nxa4 {[%clk 0:01:41.1]} 29... Rh3 {[%clk 0:01:11.4]} 30. Nxc5 {[%clk 0:01:40.9]}
30... Rc8 {[%clk 0:01:07.6]} 31. Nxb7 {[%clk 0:01:40.1]} 31... Rxc4+ {[%clk
0:01:07.1]} 32. Kb3 {[%clk 0:01:40.6]} 32... Rc8 {[%clk 0:01:03.7]} 33. a4
{[%clk 0:01:40.9]} 33... Rxf3 {[%clk 0:01:02.8]} 34. a5 {[%clk 0:01:41]} 34...
Ne4 {[%clk 0:01:02.7]} 35. Ka4 {[%clk 0:01:35.4]} 35... Rf5 {[%clk 0:00:55]} 36.
a6 {[%clk 0:01:25.2]} 36... Rc4+ {[%clk 0:00:50.6]} 37. Ka3 {[%clk 0:01:23]}
37... Rc3+ {[%clk 0:00:39.7]} 38. Kb2 {[%clk 0:01:19.3]} 38... Rc8 {[%clk
0:00:32.5]} 39. a7 {[%clk 0:01:17.4]} 39... Ra8 {[%clk 0:00:31.8]} 40. Ra1
{[%clk 0:01:17]} 40... Rxf2+ {[%clk 0:00:31.3]} 41. Kb3 {[%clk 0:01:17.4]} 41...
Rf6 {[%clk 0:00:16.6]} 42. Rb4 {[%clk 0:01:05.2]} 42... Nd2+ {[%clk 0:00:12.3]}
43. Kc2 {[%clk 0:01:04.4]} 43... Nf3 {[%clk 0:00:11.4]} 44. Nc5 {[%clk
0:01:02.5]} 44... Rc6 {[%clk 0:00:11.3]} 45. Rb8+ {[%clk 0:01:02.8]} 45... Kh7
{[%clk 0:00:11.7]} 46. Rxa8 {[%clk 0:01:02.5]} 46... Rxc5+ {[%clk 0:00:12.1]}
47. Kb3 {[%clk 0:01:02.7]} 47... Nd2+ {[%clk 0:00:11.8]} 48. Kb4 {[%clk
0:01:01.8]} 48... Rc4+ {[%clk 0:00:12]} 49. Kb5 {[%clk 0:01:00.8]} 49... Rc2
{[%clk 0:00:10.1]} 50. Rd8 {[%clk 0:00:57.3]} 50... Rb2+ {[%clk 0:00:09.8]} 51.
Ka4 {[%clk 0:00:55.8]} 51... Nc4 {[%clk 0:00:09.2]} 52. Rb8 {[%clk 0:00:54.6]}
52... Re2 {[%clk 0:00:06.4]} 53. a8=Q {[%clk 0:00:53.1]} 53... Rxe3 {[%clk
0:00:07.2]} 54. Qd5 {[%clk 0:00:51.3]} 54... Ne5 {[%clk 0:00:06.3]} 55. Rg1
{[%clk 0:00:47.2]} 55... h5 {[%clk 0:00:05.4]} 56. Rb5 {[%clk 0:00:45.4]} 56...
f6 {[%clk 0:00:04.4]} 57. Rb7 {[%clk 0:00:45.7]} 1-0

[Event "*** Titled Tuesday Blitz"]
[Site "Chess.com"]
[Date "2021.03.30"]
[Round "1"]
[White "S-Fazulyanov"]
[Black "jaskol95"]
[Result "0-1"]
[WhiteElo "2693"]
[BlackElo "2400"]
[TimeControl "180+1"]
[EndTime "10:07:59 PDT"]
[Termination "jaskol95 won by resignation"]

1. e4 {[%clk 0:03:00.9]} 1... e6 {[%clk 0:02:58.5]} 2. d4 {[%clk 0:03:00.9]}
2... d5 {[%clk 0:02:58.7]} 3. e5 {[%clk 0:03:01.4]} 3... c5 {[%clk 0:02:58.8]}
4. c3 {[%clk 0:03:01.8]} 4... Nc6 {[%clk 0:02:59.5]} 5. Nf3 {[%clk 0:03:02.4]}
5... Bd7 {[%clk 0:02:57.3]} 6. a3 {[%clk 0:03:02.8]} 6... f6 {[%clk 0:02:53.8]}
7. Bd3 {[%clk 0:03:00.2]} 7... fxe5 {[%clk 0:02:51.7]} 8. dxe5 {[%clk
0:03:00.1]} 8... Qc7 {[%clk 0:02:51.5]} 9. Bf4 {[%clk 0:02:59.6]} 9... Nh6
{[%clk 0:02:51]} 10. O-O {[%clk 0:02:57.2]} 10... Nf7 {[%clk 0:02:50]} 11. Qe2
{[%clk 0:02:56]} 11... g6 {[%clk 0:02:48.1]} 12. Nbd2 {[%clk 0:02:54.4]} 12...
Bg7 {[%clk 0:02:46.3]} 13. Rfe1 {[%clk 0:02:54.8]} 13... O-O-O {[%clk
0:02:37.2]} 14. b4 {[%clk 0:02:53]} 14... c4 {[%clk 0:02:36.4]} 15. Bc2 {[%clk
0:02:53.4]} 15... Rdf8 {[%clk 0:02:08.6]} 16. a4 {[%clk 0:02:51.3]} 16... g5
{[%clk 0:02:06.1]} 17. Nxg5 {[%clk 0:02:42.9]} 17... Nxg5 {[%clk 0:02:04.6]} 18.
Bxg5 {[%clk 0:02:43.8]} 18... Qxe5 {[%clk 0:02:02.6]} 19. Be3 {[%clk 0:01:27]}
19... Qxc3 {[%clk 0:01:53.4]} 20. Rec1 {[%clk 0:01:27.4]} 20... Nxb4 {[%clk
0:01:38.7]} 21. Bxa7 {[%clk 0:00:49.1]} 21... Nxc2 {[%clk 0:01:22.7]} 22. Rab1
{[%clk 0:00:47.9]} 22... Bd4 {[%clk 0:01:05.8]} 23. Nf3 {[%clk 0:00:43.9]} 23...
Bxa7 {[%clk 0:00:43.5]} 24. Rxc2 {[%clk 0:00:44.2]} 24... Qf6 {[%clk 0:00:32.7]}
25. a5 {[%clk 0:00:42]} 25... Bc6 {[%clk 0:00:32.7]} 26. a6 {[%clk 0:00:41.6]}
26... Rhg8 {[%clk 0:00:32.4]} 27. Ne5 {[%clk 0:00:33]} 27... Bxf2+ {[%clk
0:00:28.4]} 28. Qxf2 {[%clk 0:00:31.1]} 28... Qxe5 {[%clk 0:00:27.4]} 29. Qa7
{[%clk 0:00:30.6]} 29... Qb8 {[%clk 0:00:17.8]} 30. axb7+ {[%clk 0:00:29.9]}
30... Kc7 {[%clk 0:00:18.1]} 31. Qa5+ {[%clk 0:00:21]} 31... Kd7 {[%clk
0:00:18.3]} 32. Re2 {[%clk 0:00:19]} 32... Rg6 {[%clk 0:00:16.3]} 33. Qc5 {[%clk
0:00:18.6]} 33... Rfg8 {[%clk 0:00:14.8]} 34. Rb6 {[%clk 0:00:18.8]} 34... e5
{[%clk 0:00:08.6]} 35. g3 {[%clk 0:00:13.7]} 35... Qd6 {[%clk 0:00:04.8]} 36.
Qxd6+ {[%clk 0:00:10.7]} 36... Kxd6 {[%clk 0:00:05.7]} 37. b8=Q+ {[%clk
0:00:11.6]} 37... Rxb8 {[%clk 0:00:05.8]} 38. Rxb8 {[%clk 0:00:12.5]} 38... d4
{[%clk 0:00:06.6]} 39. Kf2 {[%clk 0:00:12.2]} 39... d3 {[%clk 0:00:06.7]} 40.
Rd2 {[%clk 0:00:11.9]} 40... Rf6+ {[%clk 0:00:07]} 41. Ke1 {[%clk 0:00:10.3]}
41... e4 {[%clk 0:00:07.3]} 42. Rd8+ {[%clk 0:00:09.2]} 42... Kc5 {[%clk
0:00:07.7]} 43. Rf2 {[%clk 0:00:07.3]} 43... Rxf2 {[%clk 0:00:06.1]} 44. Kxf2
{[%clk 0:00:08.2]} 44... c3 {[%clk 0:00:06.8]} 45. Ke3 {[%clk 0:00:08.6]} 45...
c2 {[%clk 0:00:05.5]} 46. Kd2 {[%clk 0:00:08.5]} 46... e3+ {[%clk 0:00:04]} 47.
Kc1 {[%clk 0:00:04.3]} 47... e2 {[%clk 0:00:04.5]} 48. Kd2 {[%clk 0:00:03.6]}
48... e1=Q+ {[%clk 0:00:04.4]} 49. Kxe1 {[%clk 0:00:04.1]} 49... c1=Q+ {[%clk
0:00:05.3]} 50. Kf2 {[%clk 0:00:04.3]} 50... Qd2+ {[%clk 0:00:05.9]} 0-1

[Event "*** Titled Tuesday Blitz"]
[Site "Chess.com"]
[Date "2021.03.30"]
[Round "1"]
[White "igorkovalenko"]
[Black "VD_coach"]
[Result "1-0"]
[WhiteElo "2952"]
[BlackElo "2468"]
[TimeControl "180+1"]
[EndTime "10:08:01 PDT"]
[Termination "igorkovalenko won by resignation"]

1. e4 {[%clk 0:03:00.9]} 1... c5 {[%clk 0:02:59.7]} 2. Nf3 {[%clk 0:03:00.8]}
2... d6 {[%clk 0:02:59.9]} 3. d4 {[%clk 0:03:00.4]} 3... cxd4 {[%clk 0:03:00.3]}
4. Nxd4 {[%clk 0:03:01.3]} 4... Nf6 {[%clk 0:03:00.7]} 5. Nc3 {[%clk 0:03:01.9]}
5... g6 {[%clk 0:03:01.1]} 6. Be3 {[%clk 0:03:01.5]} 6... Bg7 {[%clk 0:03:01.3]}
7. h3 {[%clk 0:03:01.7]} 7... O-O {[%clk 0:03:00.5]} 8. Qd2 {[%clk 0:03:02.1]}
8... Nc6 {[%clk 0:03:00.5]} 9. O-O-O {[%clk 0:03:01.8]} 9... Nxd4 {[%clk
0:02:56.9]} 10. Bxd4 {[%clk 0:03:01.3]} 10... Be6 {[%clk 0:02:57.5]} 11. Kb1
{[%clk 0:03:00.7]} 11... Qc7 {[%clk 0:02:56.4]} 12. g4 {[%clk 0:02:57.5]} 12...
Rfc8 {[%clk 0:02:56.1]} 13. f4 {[%clk 0:02:56.2]} 13... Qa5 {[%clk 0:02:53.7]}
14. a3 {[%clk 0:02:53.3]} 14... Rab8 {[%clk 0:02:40.3]} 15. f5 {[%clk
0:02:52.1]} 15... Bc4 {[%clk 0:02:38.3]} 16. g5 {[%clk 0:02:50.6]} 16... Ne8
{[%clk 0:02:22.8]} 17. Bxg7 {[%clk 0:02:13.5]} 17... Nxg7 {[%clk 0:02:20]} 18.
Nd5 {[%clk 0:01:57.2]} 18... Qxd2 {[%clk 0:02:17.2]} 19. Nxe7+ {[%clk
0:01:57.1]} 19... Kf8 {[%clk 0:02:17]} 20. Rxd2 {[%clk 0:01:57.4]} 20... Kxe7
{[%clk 0:02:16.4]} 21. f6+ {[%clk 0:01:57.5]} 21... Kf8 {[%clk 0:02:16.7]} 22.
fxg7+ {[%clk 0:01:58]} 22... Kxg7 {[%clk 0:02:17]} 23. Rxd6 {[%clk 0:01:58.5]}
23... Be6 {[%clk 0:02:06.5]} 24. h4 {[%clk 0:01:47.2]} 24... Rc5 {[%clk
0:02:06.2]} 25. Bd3 {[%clk 0:01:46.6]} 25... Rbc8 {[%clk 0:02:03.7]} 26. b3
{[%clk 0:01:43.7]} 26... R8c6 {[%clk 0:02:01.3]} 27. Rd4 {[%clk 0:01:41.8]}
27... h6 {[%clk 0:01:55.7]} 28. gxh6+ {[%clk 0:01:35]} 28... Kxh6 {[%clk
0:01:56.6]} 29. Rf1 {[%clk 0:01:33.4]} 29... Rh5 {[%clk 0:01:50.1]} 30. Rf4
{[%clk 0:01:33.3]} 30... Kg7 {[%clk 0:01:46]} 31. Ra4 {[%clk 0:01:33.1]} 31...
a6 {[%clk 0:01:44.7]} 32. Rb4 {[%clk 0:01:33.4]} 32... b5 {[%clk 0:01:36.6]} 33.
a4 {[%clk 0:01:33.5]} 33... bxa4 {[%clk 0:01:36.8]} 34. Rxa4 {[%clk 0:01:34.4]}
34... a5 {[%clk 0:01:37.2]} 35. Kb2 {[%clk 0:01:34.2]} 35... Rcc5 {[%clk
0:01:35.1]} 36. Rd4 {[%clk 0:01:31.7]} 36... Rc8 {[%clk 0:01:31]} 37. Be2 {[%clk
0:01:31.2]} 37... Rhc5 {[%clk 0:01:29.7]} 38. Bd3 {[%clk 0:01:28.1]} 38... Rh8
{[%clk 0:01:26.6]} 39. Be2 {[%clk 0:01:25.4]} 39... Rhc8 {[%clk 0:01:24.2]} 40.
c4 {[%clk 0:01:25.1]} 40... Rb8 {[%clk 0:01:15.9]} 41. Kc3 {[%clk 0:01:25.1]}
41... Rb4 {[%clk 0:01:12]} 42. Bd1 {[%clk 0:01:20.7]} 42... Rb8 {[%clk
0:01:07.9]} 43. Rd5 {[%clk 0:01:15.7]} 43... Bxd5 {[%clk 0:01:03.8]} 44. exd5
{[%clk 0:01:16.6]} 44... f5 {[%clk 0:00:58]} 45. h5 {[%clk 0:01:11.6]} 45...
Rcc8 {[%clk 0:00:51.2]} 46. hxg6 {[%clk 0:01:11.4]} 46... Kxg6 {[%clk
0:00:51.4]} 47. Bc2 {[%clk 0:01:09.1]} 47... Kf6 {[%clk 0:00:45]} 48. Rxf5+
{[%clk 0:01:08.8]} 48... Ke7 {[%clk 0:00:45.5]} 49. Rh5 {[%clk 0:01:09]} 49...
Kd6 {[%clk 0:00:45.3]} 50. Kd4 {[%clk 0:01:08.1]} 50... Rb4 {[%clk 0:00:37.4]}
51. Rh6+ {[%clk 0:01:07.4]} 51... Kc7 {[%clk 0:00:37.6]} 52. Ra6 {[%clk
0:01:05.7]} 52... a4 {[%clk 0:00:33.6]} 53. d6+ {[%clk 0:00:38.3]} 53... Kb7
{[%clk 0:00:32.2]} 54. Rxa4 {[%clk 0:00:38.4]} 54... Rxa4 {[%clk 0:00:32.4]} 55.
Be4+ {[%clk 0:00:38.5]} 55... Kb6 {[%clk 0:00:28.5]} 56. bxa4 {[%clk 0:00:38.8]}
56... Rh8 {[%clk 0:00:25]} 57. c5+ {[%clk 0:00:38.2]} 57... Ka7 {[%clk
0:00:25.2]} 58. a5 {[%clk 0:00:36.7]} 58... Kb8 {[%clk 0:00:25.1]} 59. c6 {[%clk
0:00:36.8]} 59... Rh6 {[%clk 0:00:19.8]} 60. Kc5 {[%clk 0:00:36.5]} 60... Rh5+
{[%clk 0:00:18.4]} 61. Kb6 {[%clk 0:00:35.6]} 61... Re5 {[%clk 0:00:15.7]} 62.
c7+ {[%clk 0:00:35.2]} 62... Kc8 {[%clk 0:00:16]} 63. Bb7+ {[%clk 0:00:35.9]}
1-0

[Event "*** Titled Tuesday Blitz"]
[Site "Chess.com"]
[Date "2021.03.30"]
[Round "1"]
[White "prachiti01"]
[Black "Steven_Rojas"]
[Result "1/2-1/2"]
[WhiteElo "1934"]
[BlackElo "2464"]
[TimeControl "180+1"]
[EndTime "10:08:02 PDT"]
[Termination "Game drawn by repetition"]

1. e4 {[%clk 0:02:58.4]} 1... e5 {[%clk 0:02:56.1]} 2. Nf3 {[%clk 0:02:56.1]}
2... Nc6 {[%clk 0:02:56.4]} 3. Bb5 {[%clk 0:02:55.6]} 3... Nf6 {[%clk
0:02:56.1]} 4. d3 {[%clk 0:02:53.3]} 4... d6 {[%clk 0:02:41.6]} 5. O-O {[%clk
0:02:52.2]} 5... Be7 {[%clk 0:02:41.9]} 6. Re1 {[%clk 0:02:51.2]} 6... O-O
{[%clk 0:02:42.4]} 7. c3 {[%clk 0:02:50.3]} 7... a6 {[%clk 0:02:33.3]} 8. Ba4
{[%clk 0:02:48.4]} 8... b5 {[%clk 0:02:27.9]} 9. Bc2 {[%clk 0:02:46.5]} 9... Bb7
{[%clk 0:02:28.4]} 10. Nbd2 {[%clk 0:02:46.2]} 10... Re8 {[%clk 0:02:28.8]} 11.
Nf1 {[%clk 0:02:45.4]} 11... Bf8 {[%clk 0:02:29.4]} 12. Ng3 {[%clk 0:02:45.1]}
12... Ne7 {[%clk 0:02:29.9]} 13. h3 {[%clk 0:02:40.4]} 13... Ng6 {[%clk
0:02:30.2]} 14. d4 {[%clk 0:02:37]} 14... Nf4 {[%clk 0:02:22.5]} 15. dxe5 {[%clk
0:02:29.8]} 15... dxe5 {[%clk 0:02:22.8]} 16. Qxd8 {[%clk 0:02:14]} 16... Raxd8
{[%clk 0:02:23.7]} 17. Be3 {[%clk 0:02:02.4]} 17... g6 {[%clk 0:02:20.4]} 18.
Rad1 {[%clk 0:01:58.5]} 18... Bd6 {[%clk 0:02:18.5]} 19. Rd2 {[%clk 0:01:51.5]}
19... N6h5 {[%clk 0:02:12.8]} 20. Nxh5 {[%clk 0:01:47.3]} 20... Nxh5 {[%clk
0:02:13.7]} 21. g3 {[%clk 0:01:44.2]} 21... f6 {[%clk 0:02:09]} 22. Red1 {[%clk
0:01:41.5]} 22... Ng7 {[%clk 0:02:08.8]} 23. Bb3+ {[%clk 0:01:41]} 23... Kh8
{[%clk 0:02:09]} 24. Bd5 {[%clk 0:01:40.9]} 24... Bxd5 {[%clk 0:02:07]} 25. Rxd5
{[%clk 0:01:40]} 25... Ne6 {[%clk 0:02:06.8]} 26. Kg2 {[%clk 0:01:29.5]} 26...
Kg7 {[%clk 0:02:06.5]} 27. Ne1 {[%clk 0:01:28]} 27... Kf7 {[%clk 0:02:06.8]} 28.
Nc2 {[%clk 0:01:27.2]} 28... Bf8 {[%clk 0:02:06.1]} 29. Rxd8 {[%clk 0:01:26.1]}
29... Rxd8 {[%clk 0:02:07]} 30. Rxd8 {[%clk 0:01:25.9]} 30... Nxd8 {[%clk
0:02:07.9]} 31. f3 {[%clk 0:01:25.3]} 31... a5 {[%clk 0:02:04.8]} 32. Kf2 {[%clk
0:01:23.9]} 32... Ke6 {[%clk 0:02:02]} 33. Ke2 {[%clk 0:01:23.4]} 33... Nb7
{[%clk 0:02:02.4]} 34. Ne1 {[%clk 0:01:20.6]} 34... Nd6 {[%clk 0:02:02.3]} 35.
Nd3 {[%clk 0:01:19.7]} 35... Nc4 {[%clk 0:02:02.4]} 36. Bc1 {[%clk 0:01:18.7]}
36... a4 {[%clk 0:02:00.3]} 37. b3 {[%clk 0:01:18.4]} 37... axb3 {[%clk
0:02:01.2]} 38. axb3 {[%clk 0:01:18.7]} 38... Na5 {[%clk 0:02:02.1]} 39. b4
{[%clk 0:01:13.7]} 39... Nb7 {[%clk 0:02:02.5]} 40. Be3 {[%clk 0:01:12.6]} 40...
h5 {[%clk 0:02:03.1]} 41. Ne1 {[%clk 0:01:04.9]} 41... Bd6 {[%clk 0:02:02.6]}
42. Nc2 {[%clk 0:01:02.7]} 42... Kd7 {[%clk 0:02:02.9]} 43. Na3 {[%clk
0:01:02.1]} 43... c6 {[%clk 0:02:02.5]} 44. Nb1 {[%clk 0:01:01.3]} 44... Nd8
{[%clk 0:02:02]} 45. Nd2 {[%clk 0:01:00.5]} 45... Ne6 {[%clk 0:02:02.6]} 46. Nb3
{[%clk 0:00:56.7]} 46... f5 {[%clk 0:02:02.9]} 47. Kf2 {[%clk 0:00:54.5]} 47...
f4 {[%clk 0:02:02.8]} 48. gxf4 {[%clk 0:00:54.1]} 48... exf4 {[%clk 0:02:03.7]}
49. Bb6 {[%clk 0:00:52.7]} 49... g5 {[%clk 0:02:00.5]} 50. Nd4 {[%clk
0:00:51.8]} 50... Ng7 {[%clk 0:02:00.8]} 51. Kg2 {[%clk 0:00:47.4]} 51... Be5
{[%clk 0:01:59.4]} 52. Bc5 {[%clk 0:00:46.7]} 52... Ne6 {[%clk 0:01:56.8]} 53.
Nxe6 {[%clk 0:00:46.4]} 53... Kxe6 {[%clk 0:01:57.7]} 54. Bd4 {[%clk 0:00:46.1]}
54... Bd6 {[%clk 0:01:54.9]} 55. Kf2 {[%clk 0:00:45.4]} 55... Be5 {[%clk
0:01:52]} 56. Ke2 {[%clk 0:00:43.9]} 56... Bd6 {[%clk 0:01:52.2]} 57. Kf2 {[%clk
0:00:43.5]} 57... Be7 {[%clk 0:01:52.6]} 58. Ke2 {[%clk 0:00:43.3]} 58... Kf7
{[%clk 0:01:50.5]} 59. Kf2 {[%clk 0:00:42.1]} 59... Kg6 {[%clk 0:01:51.1]} 60.
Ke2 {[%clk 0:00:39.8]} 60... Bd6 {[%clk 0:01:51.7]} 61. Kf2 {[%clk 0:00:39.3]}
61... Bc7 {[%clk 0:01:46.1]} 62. Ke2 {[%clk 0:00:38.9]} 62... Kf7 {[%clk
0:01:32.3]} 63. Kf2 {[%clk 0:00:36.9]} 63... Ke6 {[%clk 0:01:32.9]} 64. Ke2
{[%clk 0:00:36.3]} 64... Bd8 {[%clk 0:01:27.8]} 65. Kf2 {[%clk 0:00:33.8]} 65...
Kd7 {[%clk 0:01:28.2]} 66. Ke2 {[%clk 0:00:33]} 66... Be7 {[%clk 0:01:27.8]} 67.
Kf2 {[%clk 0:00:29.7]} 67... c5 {[%clk 0:01:25.5]} 68. bxc5 {[%clk 0:00:28.9]}
68... Kc6 {[%clk 0:01:25.9]} 69. Ke2 {[%clk 0:00:28.4]} 69... Bd8 {[%clk
0:01:09.8]} 70. Kd3 {[%clk 0:00:25.6]} 70... Be7 {[%clk 0:01:10.4]} 71. Ke2
{[%clk 0:00:24.9]} 71... Kd7 {[%clk 0:01:06.4]} 72. Kd3 {[%clk 0:00:22.9]} 72...
Kc6 {[%clk 0:01:05.9]} 73. Ke2 {[%clk 0:00:22.6]} 1/2-1/2

[Event "*** Titled Tuesday Blitz"]
[Site "Chess.com"]
[Date "2021.03.30"]
[Round "1"]
[White "PerAsperaAdAstraCB"]
[Black "Genghis_K"]
[Result "0-1"]
[WhiteElo "2467"]
[BlackElo "2951"]
[TimeControl "180+1"]
[EndTime "10:08:04 PDT"]
[Termination "Genghis_K won by checkmate"]

1. d4 {[%clk 0:02:59.9]} 1... Nf6 {[%clk 0:02:57]} 2. Bf4 {[%clk 0:03:00.2]}
2... c5 {[%clk 0:02:55]} 3. e3 {[%clk 0:03:00]} 3... Qb6 {[%clk 0:02:47.5]} 4.
Nc3 {[%clk 0:02:59.2]} 4... a6 {[%clk 0:02:46.7]} 5. a3 {[%clk 0:02:59.3]} 5...
cxd4 {[%clk 0:02:44.6]} 6. exd4 {[%clk 0:03:00.2]} 6... d5 {[%clk 0:02:45.1]} 7.
Nf3 {[%clk 0:03:00]} 7... Nc6 {[%clk 0:02:45.5]} 8. Be2 {[%clk 0:02:55.9]} 8...
Bg4 {[%clk 0:02:45.6]} 9. Na4 {[%clk 0:02:52.9]} 9... Qd8 {[%clk 0:02:38]} 10.
O-O {[%clk 0:02:52.2]} 10... e6 {[%clk 0:02:37.7]} 11. b4 {[%clk 0:02:44.8]}
11... Bd6 {[%clk 0:02:36.4]} 12. Bxd6 {[%clk 0:02:37.5]} 12... Qxd6 {[%clk
0:02:36.6]} 13. Nc5 {[%clk 0:02:38.1]} 13... Rb8 {[%clk 0:02:33.8]} 14. Re1
{[%clk 0:02:34.8]} 14... O-O {[%clk 0:02:29.6]} 15. c3 {[%clk 0:02:34.5]} 15...
Rfc8 {[%clk 0:02:27.8]} 16. Ne5 {[%clk 0:02:33.7]} 16... Bf5 {[%clk 0:02:22.5]}
17. Bd3 {[%clk 0:02:32.6]} 17... Ne7 {[%clk 0:02:15.4]} 18. Rc1 {[%clk
0:02:30.1]} 18... Qd8 {[%clk 0:01:53.3]} 19. Bxf5 {[%clk 0:02:23.3]} 19... Nxf5
{[%clk 0:01:54.2]} 20. Qf3 {[%clk 0:02:22.8]} 20... Nd6 {[%clk 0:01:44.3]} 21.
Re3 {[%clk 0:02:19.1]} 21... b6 {[%clk 0:01:38.8]} 22. Nxa6 {[%clk 0:02:12]}
22... Ra8 {[%clk 0:01:38]} 23. Qe2 {[%clk 0:02:11.9]} 23... Qe8 {[%clk
0:01:30.7]} 24. g4 {[%clk 0:01:32.5]} 24... Qb5 {[%clk 0:01:24.5]} 25. Qf3
{[%clk 0:01:30.8]} 25... Qxa6 {[%clk 0:01:22.2]} 26. g5 {[%clk 0:01:30.9]} 26...
Nfe4 {[%clk 0:01:22.5]} 27. Qh5 {[%clk 0:01:25.1]} 27... g6 {[%clk 0:01:07.1]}
28. Qh4 {[%clk 0:01:16.2]} 28... Nf5 {[%clk 0:01:05.8]} 29. Qf4 {[%clk
0:01:16.2]} 29... Qxa3 {[%clk 0:01:01.7]} 30. Rce1 {[%clk 0:01:15.2]} 30... Qb2
{[%clk 0:01:01.2]} 31. Ng4 {[%clk 0:01:11.5]} 31... Rxc3 {[%clk 0:00:57.6]} 32.
Rxe4 {[%clk 0:01:10.9]} 32... dxe4 {[%clk 0:00:55.5]} 33. Nf6+ {[%clk
0:01:10.9]} 33... Kf8 {[%clk 0:00:52.6]} 34. Qxe4 {[%clk 0:01:02.1]} 34... Ra1
{[%clk 0:00:48.7]} 35. Rxa1 {[%clk 0:00:55.4]} 35... Qxa1+ {[%clk 0:00:48.5]}
36. Kg2 {[%clk 0:00:56.3]} 36... Rc1 {[%clk 0:00:42.7]} 37. Kh3 {[%clk
0:00:46.3]} 37... Rc3+ {[%clk 0:00:35]} 38. Kg2 {[%clk 0:00:44.7]} 38... Rc1
{[%clk 0:00:26.4]} 39. Kh3 {[%clk 0:00:44.3]} 39... Qc3+ {[%clk 0:00:26.7]} 40.
Kg2 {[%clk 0:00:43.5]} 40... Qc6 {[%clk 0:00:19.9]} 41. d5 {[%clk 0:00:43.5]}
41... exd5 {[%clk 0:00:20.6]} 42. Qe5 {[%clk 0:00:40.5]} 42... d4+ {[%clk
0:00:16.3]} 43. Nd5 {[%clk 0:00:38.5]} 43... f6 {[%clk 0:00:06.6]} 44. gxf6
{[%clk 0:00:37.5]} 44... Qd6 {[%clk 0:00:04.5]} 45. Qe4 {[%clk 0:00:35]} 45...
Kf7 {[%clk 0:00:04]} 46. Nf4 {[%clk 0:00:29]} 46... Qc6 {[%clk 0:00:03.9]} 47.
Nd5 {[%clk 0:00:29.3]} 47... Qe6 {[%clk 0:00:04.1]} 48. Qf4 {[%clk 0:00:16.4]}
48... Qxd5+ {[%clk 0:00:03.9]} 49. f3 {[%clk 0:00:13.3]} 49... Rc2+ {[%clk
0:00:03.8]} 50. Kh3 {[%clk 0:00:13.6]} 50... Qe6 {[%clk 0:00:04.2]} 51. Qc7+
{[%clk 0:00:12.1]} 51... Kxf6 {[%clk 0:00:04.4]} 52. Qxc2 {[%clk 0:00:11.2]}
52... Ne3+ {[%clk 0:00:04.2]} 53. Kg3 {[%clk 0:00:12]} 53... Nxc2 {[%clk
0:00:04.6]} 54. h4 {[%clk 0:00:12.9]} 54... d3 {[%clk 0:00:05.4]} 55. f4 {[%clk
0:00:13.7]} 55... d2 {[%clk 0:00:06.3]} 56. f5 {[%clk 0:00:13.9]} 56... Qe3+
{[%clk 0:00:07.2]} 57. Kg4 {[%clk 0:00:13.8]} 57... d1=Q# {[%clk 0:00:08.1]} 0-1